fUST/lending_fUST_20241210
["ID","MTS","AMOUNT","RATE_DAILY","PERIOD"]
[344848823,1733832641363,-408.790377,0.00025,7]
[344848824,1733832641372,-408.790377,0.00025,7]
[344848825,1733832641381,-408.790377,0.00025,7]
[344848826,1733832641391,-408.790377,0.00025,7]
[344848827,1733832641400,-408.790377,0.00025,7]
[344848828,1733832641409,-408.790377,0.00025,7]
[344848829,1733832641420,-408.790377,0.00025,7]
[344848830,1733832641430,-1100.332487,0.00025,7]
[344848831,1733832641441,-1100.332487,0.00025,7]
[344848832,1733832641451,-1100.332487,0.00025,7]
[344848833,1733832641461,-1100.332487,0.00025,7]
[344848834,1733832641471,-1100.332487,0.00025,7]
[344848835,1733832641481,-1100.332487,0.00025,7]
[344848836,1733832641490,-1100.332487,0.00025,7]
[344848837,1733832641499,-1770.0,0.00025,2]
[344848838,1733832641510,-1100.332487,0.00025,7]
[344848839,1733832641519,-151.0,0.00025,7]
[344848840,1733832641530,-151.0,0.00025,7]
[344848841,1733832641539,-151.0,0.00025,7]
[344848842,1733832641549,-151.0,0.00025,7]
[344848843,1733832641557,-151.0,0.00025,7]
[344848844,1733832641565,-151.0,0.00025,7]
[344848845,1733832641574,-177.469218,0.00025,7]
[344848846,1733832641582,-366.0,0.00025275,2]
[344848847,1733832641590,-1000.0,0.00025521,2]
[344848848,1733832641598,-165.006347,0.00025702,7]
[344848849,1733832641607,-165.006347,0.00025702,7]
[344848850,1733832641615,-151.0,0.00025702,7]
[344848851,1733832641623,-151.0,0.00025702,7]
[344848852,1733832641631,-151.0,0.00025702,7]
[344848853,1733832641640,-151.0,0.00025702,7]
[344848854,1733832641648,-151.0,0.00025702,7]
[344848855,1733832641656,-658.78863,0.00025702,7]
[344848856,1733832641665,-658.78863,0.00025702,7]
[344848857,1733832641673,-151.0,0.00025702,7]
[344848858,1733832641683,-668.259957,0.00025702,7]
[344848859,1733832641692,-668.259957,0.00025702,7]
[344848860,1733832641701,-408.790377,0.00025702,7]
[344848861,1733832641710,-408.790377,0.00025702,7]
[344848862,1733832641717,-1100.332487,0.00025702,7]
[344848863,1733832641725,-1100.332487,0.00025702,7]
[344848864,1733832641736,-151.0,0.00025702,7]
[344848865,1733832641744,-327.969373,0.00025766,2]
[344848866,1733832641753,-509.31,0.00026,5]
[344848867,1733832641762,-762.36764662,0.00026,2]
[344848868,1733832641772,-190.05108,0.00026,7]
[344848869,1733832641780,-151.0,0.00026,7]
[344848870,1733832641790,-658.78863,0.00026,7]
[344848871,1733832641799,-658.78863,0.00026,7]
[344848872,1733832641809,-151.0,0.00026,7]
[344848873,1733832641818,-288.347523,0.00026,7]
[344848874,1733832641828,-668.259957,0.00026,7]
[344848875,1733832641836,-668.259957,0.00026,7]
[344848876,1733832641844,-408.790377,0.00026,7]
[344848877,1733832641853,-408.790377,0.00026,7]
[344848878,1733832641862,-1100.332487,0.00026,7]
[344848879,1733832641877,-1100.332487,0.00026,7]
[344848880,1733832641892,-151.0,0.00026,7]
[344848881,1733832641988,-500.74556636,0.00026,2]
[344848882,1733832641997,-500.0,0.00026,2]
[344848883,1733832642008,-358.11184919,0.00026,2]
[344848884,1733832642016,-156.8745004,0.00026015,2]
[344848885,1733832642025,-222.59612103,0.00026293,2]
[344848886,1733832642034,-151.0,0.00026325,7]
[344848887,1733832642042,-151.0,0.00026325,7]
[344848888,1733832642051,-151.0,0.00026325,7]
[344848889,1733832642062,-160.0,0.00026405,3]
[344848890,1733832642071,-1500.0,0.00026522,2]
[344848891,1733832642080,-160.0,0.00026631,4]
[344848892,1733832642088,-327.969373,0.00026654,2]
[344848893,1733832642097,-160.0,0.00026857,5]
[344848894,1733832642105,-222.59612102,0.00026945,2]
[344848895,1733832642113,-500.0,0.00026973,2]
[344848896,1733832642122,-164.78109988,0.00026999,2]
[344848897,1733832642131,-500.0,0.00026999,2]
[344848898,1733832642140,-162.74154033,0.00026999,2]
[344848899,1733832642150,-236.23561857,0.00026999,2]
[344848900,1733832642157,-169.19255687,0.00026999,2]
[344848901,1733832642166,-408.790377,0.00026999,7]
[344848902,1733832642175,-408.790377,0.00026999,7]
[344848903,1733832642184,-1100.332487,0.00026999,7]
[344848904,1733832642192,-1100.332487,0.00026999,7]
[344848905,1733832642200,-151.0,0.00026999,7]
[344848906,1733832642207,-46595.72262586,0.00027,2]
[344848907,1733832642214,-25204.52,0.00027,2]
[344848908,1733832642221,-725.10508737,0.00027,15]
[344848909,1733832642228,-500.0,0.00027,2]
[344848910,1733832642235,-158.48712043,0.00027,2]
[344848911,1733832642242,-500.0,0.00027,2]
[344848912,1733832642249,-500.67325443,0.00027,2]
[344848913,1733832642257,-501.47599207,0.00027,2]
[344848914,1733832642265,-165.006347,0.00027,7]
[344848915,1733832642272,-165.006347,0.00027,7]
[344848916,1733832642279,-165.006347,0.00027,7]
[344848917,1733832642285,-165.006347,0.00027,7]
[344848918,1733832642292,-165.006347,0.00027,7]
[344848919,1733832642300,-165.006347,0.00027,7]
[344848920,1733832642307,-165.006347,0.00027,7]
[344848921,1733832642314,-165.006347,0.00027,7]
[344848922,1733832642321,-165.006347,0.00027,7]
[344848923,1733832642331,-165.006347,0.00027,7]
[344848924,1733832642341,-151.0,0.00027,7]
[344848925,1733832642350,-151.0,0.00027,7]
[344848926,1733832642359,-195.69622474,0.00027,7]
[344848927,1733832642369,-151.0,0.00027,7]
[344848928,1733832642378,-151.0,0.00027,7]
[344848929,1733832642387,-151.0,0.00027,7]
[344848930,1733832642397,-198.490661,0.00027,7]
[344848931,1733832642406,-211.64009,0.00027,7]
[344848932,1733832642416,-151.0,0.00027,7]
[344848933,1733832642426,-151.0,0.00027,7]
[344848934,1733832642440,-151.0,0.00027,7]
[344848935,1733832642449,-151.0,0.00027,7]
[344848936,1733832642459,-151.0,0.00027,7]
[344848937,1733832642469,-151.0,0.00027,7]
[344848938,1733832642478,-197.38537699,0.00027,7]
[344848939,1733832642488,-658.78863,0.00027,7]
[344848940,1733832642497,-658.78863,0.00027,7]
[344848941,1733832642510,-658.78863,0.00027,7]
[344848942,1733832642519,-658.78863,0.00027,7]
[344848943,1733832642528,-658.78863,0.00027,7]
[344848944,1733832642537,-658.78863,0.00027,7]
[344848945,1733832642547,-658.78863,0.00027,7]
[344848946,1733832642556,-658.788624,0.00027,7]
[344848947,1733832642566,-151.0,0.00027,7]
[344848948,1733832642575,-151.0,0.00027,7]
[344848949,1733832642585,-151.0,0.00027,7]
[344848950,1733832642595,-151.0,0.00027,7]
[344848951,1733832642604,-668.259957,0.00027,7]
[344848952,1733832642613,-668.259957,0.00027,7]
[344848953,1733832642622,-668.259957,0.00027,7]
[344848954,1733832642631,-668.259957,0.00027,7]
[344848955,1733832642641,-668.259957,0.00027,7]
[344848956,1733832642651,-668.259957,0.00027,7]
[344848957,1733832642660,-668.259957,0.00027,7]
[344848958,1733832642669,-668.259961,0.00027,7]
[344848959,1733832642678,-408.790377,0.00027,7]
[344848960,1733832642687,-408.790377,0.00027,7]
[344848961,1733832642697,-408.790377,0.00027,7]
[344848962,1733832642707,-408.790377,0.00027,7]
[344848963,1733832642716,-408.790377,0.00027,7]
[344848964,1733832642726,-408.790373,0.00027,7]
[344848965,1733832642735,-1100.332487,0.00027,7]
[344848966,1733832642748,-1100.332487,0.00027,7]
[344848968,1733832642760,-1100.332487,0.00027,7]
[344848969,1733832642769,-1100.332487,0.00027,7]
[344848970,1733832642778,-1100.332487,0.00027,7]
[344848971,1733832642787,-1100.332484,0.00027,7]
[344848972,1733832642796,-160.304944,0.00027,7]
[344848973,1733832642805,-587.0,0.00027078,2]
[344848974,1733832642815,-160.0,0.00027083,6]
[344848975,1733832642824,-5160.605,0.00027139,2]
[344848976,1733832642832,-151.123,0.00027139,2]
[344848977,1733832642842,-165.006347,0.00027139,7]
[344848978,1733832642851,-165.006351,0.00027139,7]
[344848979,1733832642860,-230.97549902,0.00027198,2]
[344848980,1733832642870,-160.0,0.00027309,7]
[344848981,1733832642879,-515.77,0.00027397,7]
[344848982,1733832642888,-500.0,0.00027397,2]
[344848983,1733832642897,-400.8387262,0.00027397,60]
[344848984,1733832642907,-152.456672,0.00027397,7]
[344848985,1733832642917,-151.0,0.00027397,7]
[344848986,1733832642926,-206.009821,0.00027397,7]
[344848987,1733832642935,-6243.19622159,0.000275,2]
[344848988,1733832642944,-160.0,0.00027535,8]
[344848989,1733832642953,-327.969373,0.00027541,2]
[344848990,1733832642963,-1000.0,0.00027548,5]
[344848992,1733832642972,-1000.0,0.00027548,5]
[344848993,1733832642982,-151.0,0.00027576,6]
[344848994,1733832642991,-222.59612102,0.00027597,2]
[344848995,1733832643001,-504.37447311,0.00027671,2]
[344848996,1733832643014,-225.101342,0.00027671,2]
[344848997,1733832643023,-225.101342,0.00027671,120]
[344848998,1733832643033,-160.0,0.00027761,9]
[344848999,1733832643043,-2000.0,0.0002782,5]
[344849000,1733832643064,-151.0,0.00027872,2]
[344849001,1733832643086,-160.0,0.00027987,10]
[344849003,1733832643097,-487.1551979,0.0002799,2]
[344849005,1733832643106,-1282.92,0.00028,2]
[344849007,1733832643116,-191.83,0.00028,2]
[344849008,1733832643126,-251.0,0.00028,60]
[344849009,1733832643135,-26334.54955936,0.00028,2]
[344849084,1733833757414,-498.8499986,0.00020377,2]
[344849137,1733833832815,-1883.51886189,0.00024255,2]
[344849139,1733833832825,-1359.45176294,0.000245,2]
[344849142,1733833832837,-1353.3721188,0.000245,2]
[344849143,1733833832846,-193.0291948,0.00024842,2]
[344849144,1733833832856,-300.0,0.00024989,2]
[344849146,1733833832865,-70782.68981651,0.0002499,5]
[344849147,1733833832884,-69522.94141992,0.0002499,5]
[344849156,1733833838703,-167.563735,0.00024726,2]
[344849157,1733833838714,-515.364933,0.00024989,2]
[344849158,1733833838723,-1893.20133368,0.0002499,5]
[344849200,1733834544037,212.1683579,0.00013973,2]
[344849201,1733834570631,2000.599999,0.00029992,30]
[344849258,1733835032919,-163.215741,0.00023622,2]
[344849271,1733835033033,-300.0,0.0002367,2]
[344849274,1733835033050,-14.37028824,0.00023671,2]
[344849279,1733835033063,-10976.6284088,0.00023671,2]
[344849281,1733835033074,-167.563735,0.00023771,2]
[344849285,1733835033084,-6453.98215557,0.00023967,2]
[344849288,1733835033097,-1286.22905775,0.00023967,2]
[344849297,1733835033139,-500.44568473,0.00023967,2]
[344849363,1733835038857,-870.0000001,0.00023967,2]
[344849370,1733835038921,-18205.0757352,0.00023967,2]
[344849373,1733835038935,-3419.20416399,0.00023967,2]
[344849557,1733835040866,-812.58071872,0.00023967,2]
[344849945,1733835044630,-3696.29999999,0.00023967,2]
[344849965,1733835044810,-2715.97256215,0.00023967,2]
[344849967,1733835044821,-1170.49094774,0.00024636,2]
[344850304,1733835048211,-240.82811178,0.00024636,2]
[344850306,1733835048221,-823.78712859,0.00024736,2]
[344851028,1733835167151,1999.599999,0.00029992,30]
[344851032,1733835403202,160.373712,0.00013973,2]
[344851065,1733836232080,-163.215741,0.00023938,2]
[344851066,1733836232090,-1327.7018843,0.00023944,2]
[344851067,1733836232099,-500.0,0.00023967,2]
[344851068,1733836232108,-1118.57801863,0.00024386,2]
[344851069,1733836232117,-250.0,0.0002455,2]
[344851070,1733836232127,-350.0,0.00024736,2]
[344851071,1733836232136,-1307.30843469,0.00024886,2]
[344851072,1733836232145,-300.0,0.00024889,2]
[344851073,1733836232154,-222.59612102,0.0002489,2]
[344851074,1733836232163,-226.84355569,0.0002489,2]
[344851075,1733836232172,-1234.90417708,0.0002489,2]
[344851076,1733836232181,-161.0,0.00024973,2]
[344851077,1733836232191,-211.7212484,0.00024987,2]
[344851078,1733836232200,-507.93908029,0.00024989,2]
[344851079,1733836232210,-500.0,0.00024989,2]
[344851080,1733836232224,-500.0,0.00024989,2]
[344851081,1733836232233,-500.0,0.00024989,2]
[344851082,1733836232242,-500.0,0.00024989,2]
[344851083,1733836232251,-500.0,0.00024989,2]
[344851084,1733836232262,-624.43935743,0.00024989,2]
[344851085,1733836232271,-500.0,0.00024989,2]
[344851086,1733836232387,-500.0,0.00024989,2]
[344851087,1733836232398,-500.0,0.00024989,2]
[344851088,1733836232408,-500.0,0.00024989,2]
[344851089,1733836232418,-632.76098037,0.00024989,2]
[344851090,1733836232427,-500.0,0.00024989,2]
[344851091,1733836232436,-501.03183869,0.00024989,2]
[344851092,1733836232445,-500.0,0.00024989,2]
[344851093,1733836232455,-500.0,0.00024989,2]
[344851094,1733836232464,-502.23366656,0.00024989,2]
[344851095,1733836232473,-500.0,0.00024989,2]
[344851096,1733836232482,-533.09424335,0.00024989,2]
[344851097,1733836232491,-500.0,0.00024989,2]
[344851098,1733836232500,-483.57235903,0.00024989,2]
[344851099,1733836232510,-500.0,0.00024989,2]
[344851100,1733836232519,-590.08491557,0.00024989,2]
[344851101,1733836232529,-500.0,0.00024989,2]
[344851102,1733836232538,-500.0,0.00024989,2]
[344851103,1733836232547,-487.71850846,0.0002499,2]
[344851104,1733836232563,-393.99997,0.0002499,2]
[344851129,1733836238062,-2550.95579712,0.0002499,2]
[344851130,1733836238076,-3057.18526137,0.0002499,2]
[344851131,1733836238089,-7717.89504542,0.0002499,5]
[344851253,1733836243101,-5600.97175263,0.0002499,5]
[344851261,1733836243172,-1876.48512548,0.0002499,5]
[344851263,1733836243184,-741.31,0.0002499,5]
[344851386,1733836246017,-7950.0,0.0002499,5]
[344852062,1733837318520,19855.78815482,0.00029999,32]
[344852063,1733837321996,1074.97566102,0.0001999,2]
[344852126,1733837432132,-1068.4429201,0.00022663,2]
[344852128,1733837432142,-1807.40022039,0.00023564,2]
[344852129,1733837432151,-222.59612102,0.00023588,2]
[344852130,1733837432160,-185.56814075,0.00023588,2]
[344852132,1733837432170,-967.01630524,0.00023653,2]
[344852134,1733837432179,-300.0,0.00023662,2]
[344852135,1733837432188,-164.46627323,0.00023663,2]
[344852136,1733837432197,-226.13826706,0.00023663,2]
[344852137,1733837432205,-500.0,0.00023663,2]
[344852138,1733837432215,-500.0,0.00023663,2]
[344852139,1733837432225,-500.0,0.00023663,2]
[344852140,1733837432235,-500.0,0.00023663,2]
[344852141,1733837432248,-500.0,0.00023663,2]
[344852142,1733837432257,-500.0,0.00023663,2]
[344852143,1733837432267,-573.03642772,0.00023663,2]
[344852144,1733837432276,-500.0,0.00023663,2]
[344852145,1733837432286,-500.0,0.00023663,2]
[344852146,1733837432295,-499.39767279,0.00023663,2]
[344852147,1733837432304,-500.0,0.00023663,2]
[344852148,1733837432313,-423.13601453,0.00023663,2]
[344852181,1733837438029,-76.86398547,0.00023663,2]
[344852184,1733837438040,-500.0,0.00023663,2]
[344852186,1733837438051,-500.0,0.00023663,2]
[344852188,1733837438061,-500.0,0.00023663,2]
[344852190,1733837438071,-500.0,0.00023663,2]
[344852192,1733837438081,-500.0,0.00023663,2]
[344852194,1733837438091,-500.0,0.00023663,2]
[344852196,1733837438100,-500.0,0.00023663,2]
[344852198,1733837438109,-500.0,0.00023663,2]
[344852200,1733837438122,-500.0,0.00023663,2]
[344852202,1733837438132,-298.1076424,0.00023663,2]
[344852204,1733837438142,-500.0,0.00023663,2]
[344852206,1733837438151,-500.0,0.00023663,2]
[344852209,1733837438161,-500.0,0.00023663,2]
[344852212,1733837438171,-500.0,0.00023663,2]
[344852215,1733837438181,-500.0,0.00023663,2]
[344852218,1733837438191,-500.0,0.00023663,2]
[344852221,1733837438200,-500.0,0.00023663,2]
[344852224,1733837438210,-500.0,0.00023663,2]
[344852228,1733837438219,-500.0,0.00023663,2]
[344852231,1733837438228,-500.0,0.00023663,2]
[344852234,1733837438238,-500.0,0.00023663,2]
[344852237,1733837438251,-500.0,0.00023663,2]
[344852239,1733837438259,-500.0,0.00023663,2]
[344852241,1733837438269,-500.0,0.00023663,2]
[344852243,1733837438278,-500.0,0.00023663,2]
[344852245,1733837438287,-500.0,0.00023663,2]
[344852247,1733837438295,-500.0,0.00023663,2]
[344852249,1733837438305,-500.0,0.00023663,2]
[344852251,1733837438314,-500.0,0.00023663,2]
[344852253,1733837438323,-637.44935203,0.00023663,2]
[344852255,1733837438333,-500.0,0.00023663,2]
[344852257,1733837438343,-500.0,0.00023663,2]
[344852259,1733837438352,-500.0,0.00023663,2]
[344852261,1733837438362,-500.0,0.00023663,2]
[344852263,1733837438371,-500.0,0.00023663,2]
[344852265,1733837438380,-500.0,0.00023663,2]
[344852267,1733837438390,-500.0,0.00023663,2]
[344852269,1733837438400,-500.0,0.00023663,2]
[344852271,1733837438409,-500.0,0.00023663,2]
[344852273,1733837438418,-500.0,0.00023663,2]
[344852275,1733837438428,-500.0,0.00023663,2]
[344852277,1733837438437,-500.0,0.00023663,2]
[344852279,1733837438446,-500.0,0.00023663,2]
[344852281,1733837438455,-200.0,0.00023663,2]
[344852283,1733837438465,-3244.92976847,0.00023664,2]
[344852285,1733837438474,-163.215741,0.00023664,2]
[344852286,1733837438483,-47392.42001492,0.00023664,10]
[344852287,1733837438495,-4021.85954959,0.00023664,10]
[344852288,1733837438509,-1379.9999995,0.00023664,10]
[344852289,1733837438521,-1446.2725006,0.00023664,10]
[344852290,1733837438540,-1282.55000006,0.00023664,10]
[344852437,1733837440065,-4901.8054225,0.00023664,10]
[344852715,1733837443184,-10651.41056231,0.00023664,10]
[344853037,1733837446078,-394.80000136,0.00023664,10]
[344854416,1733837813095,459.37,0.0002088,10]
[344855885,1733838323263,464.36,0.0002001,2]
[344855955,1733838638177,-166.0,0.00022,2]
[344855956,1733838638187,-166.750531,0.00022077,2]
[344855957,1733838638197,-376.1932207,0.00022129,2]
[344855958,1733838638212,-300.0,0.00022663,2]
[344855959,1733838638222,-1171.5897231,0.00022664,2]
[344855960,1733838638234,-23728.4102769,0.00022664,2]
[344855961,1733838638243,-9866.01100103,0.00023112,2]
[344855962,1733838638252,-160.0,0.00023288,2]
[344855963,1733838638262,-9866.01100103,0.00023514,2]
[344855964,1733838638271,-2070.30048894,0.00023559,2]
[344855965,1733838638281,-163.215741,0.00023562,2]
[344855966,1733838638290,-500.0,0.00023656,2]
[344855967,1733838638299,-586.27846645,0.00023656,2]
[344855968,1733838638308,-789.64167268,0.00023656,2]
[344855969,1733838638318,-500.0,0.00023656,2]
[344855970,1733838638327,-789.64167268,0.00023656,2]
[344855971,1733838638336,-500.0,0.00023656,2]
[344855972,1733838638345,-156.34623711,0.00023656,2]
[344855973,1733838638354,-789.64167268,0.00023656,2]
[344855974,1733838638363,-500.0,0.00023656,2]
[344855975,1733838638372,-368.98385341,0.00023656,2]
[344855976,1733838638382,-789.64167268,0.00023656,2]
[344855977,1733838638391,-789.64167268,0.00023656,2]
[344855978,1733838638401,-500.0,0.00023656,2]
[344855979,1733838638410,-500.0,0.00023656,2]
[344855980,1733838638420,-789.64167268,0.00023656,2]
[344855981,1733838638429,-136.16508779,0.00023656,2]
[344855982,1733838638445,-653.47658489,0.00023656,2]
[344855983,1733838638459,-500.0,0.00023656,2]
[344855984,1733838638470,-789.64167268,0.00023656,2]
[344855985,1733838638479,-500.0,0.00023656,2]
[344855986,1733838638489,-789.64167268,0.00023656,2]
[344855987,1733838638498,-500.0,0.00023656,2]
[344855988,1733838638508,-789.64167268,0.00023656,2]
[344855989,1733838638517,-500.0,0.00023656,2]
[344855990,1733838638625,-789.64167268,0.00023656,2]
[344855991,1733838638635,-500.0,0.00023656,2]
[344855992,1733838638645,-789.64167268,0.00023656,2]
[344855993,1733838638654,-500.0,0.00023656,2]
[344855994,1733838638664,-789.64167268,0.00023656,2]
[344855995,1733838638674,-500.0,0.00023656,2]
[344855996,1733838638683,-789.64167268,0.00023656,2]
[344855997,1733838638693,-789.64167268,0.00023656,2]
[344855998,1733838638702,-500.0,0.00023656,2]
[344855999,1733838638716,-789.64167268,0.00023656,2]
[344856000,1733838638725,-789.64167268,0.00023656,2]
[344856001,1733838638735,-500.0,0.00023656,2]
[344856002,1733838638744,-789.64167268,0.00023656,2]
[344856003,1733838638753,-500.0,0.00023656,2]
[344856004,1733838638763,-500.0,0.00023656,2]
[344856005,1733838638772,-789.64167268,0.00023656,2]
[344856006,1733838638782,-789.64167268,0.00023656,2]
[344856007,1733838638791,-500.0,0.00023656,2]
[344856008,1733838638800,-789.64167268,0.00023656,2]
[344856009,1733838638809,-500.0,0.00023656,2]
[344856010,1733838638819,-789.64167268,0.00023656,2]
[344856011,1733838638829,-789.64167268,0.00023656,2]
[344856012,1733838638838,-651.24547684,0.00023656,2]
[344856013,1733838638847,-789.64167268,0.00023656,2]
[344856014,1733838638857,-789.64167268,0.00023656,2]
[344856015,1733838638867,-789.64167268,0.00023656,2]
[344856016,1733838638876,-789.64167268,0.00023656,2]
[344856017,1733838638885,-789.64167268,0.00023656,2]
[344856018,1733838638895,-789.64167268,0.00023656,2]
[344856019,1733838638904,-789.64167268,0.00023656,2]
[344856020,1733838638913,-789.64167268,0.00023656,2]
[344856021,1733838638923,-789.64167268,0.00023656,2]
[344856022,1733838638932,-789.64167268,0.00023656,2]
[344856023,1733838638941,-789.64167268,0.00023656,2]
[344856024,1733838638950,-789.64167268,0.00023656,2]
[344856025,1733838638963,-789.64167268,0.00023656,2]
[344856026,1733838638975,-789.64167268,0.00023656,2]
[344856027,1733838638985,-789.64167268,0.00023656,2]
[344856028,1733838638994,-789.64167268,0.00023656,2]
[344856029,1733838639004,-789.64167268,0.00023656,2]
[344856030,1733838639014,-789.64167268,0.00023656,2]
[344856031,1733838639023,-789.64167268,0.00023656,2]
[344856032,1733838639032,-789.64167268,0.00023656,2]
[344856033,1733838639042,-789.64167268,0.00023656,2]
[344856034,1733838639052,-789.64167268,0.00023656,2]
[344856035,1733838639061,-789.64167268,0.00023656,2]
[344856036,1733838639070,-789.64167268,0.00023656,2]
[344856037,1733838639080,-789.64167268,0.00023656,2]
[344856038,1733838639089,-789.64167268,0.00023656,2]
[344856039,1733838639099,-789.64167268,0.00023656,2]
[344856040,1733838639108,-789.64167268,0.00023656,2]
[344856041,1733838639117,-789.64167268,0.00023656,2]
[344856042,1733838639127,-789.64167268,0.00023656,2]
[344856043,1733838639136,-789.64167268,0.00023656,2]
[344856044,1733838639146,-789.64167268,0.00023656,2]
[344856045,1733838639155,-789.64167268,0.00023656,2]
[344856046,1733838639165,-789.64167268,0.00023656,2]
[344856047,1733838639174,-789.64167268,0.00023656,2]
[344856048,1733838639183,-789.64167268,0.00023656,2]
[344856049,1733838639193,-789.64167268,0.00023656,2]
[344856050,1733838639202,-789.64167268,0.00023656,2]
[344856051,1733838639214,-789.64167268,0.00023656,2]
[344856052,1733838639224,-29901.28347179,0.00023656,2]
[344856053,1733838639237,-151.0,0.00023659,7]
[344856054,1733838639247,-151.0,0.00023659,7]
[344856055,1733838639256,-151.0,0.00023659,7]
[344856056,1733838639265,-151.0,0.00023659,7]
[344856057,1733838639274,-151.0,0.00023659,7]
[344856058,1733838639283,-151.0,0.00023659,7]
[344856059,1733838639292,-222.00852,0.00023659,7]
[344856060,1733838639302,-250.10403899,0.00023663,2]
[344856061,1733838639311,-262.0630235,0.00023663,2]
[344856062,1733838639320,-262.5841926,0.00023663,2]
[344856063,1733838639329,-610.05830055,0.00023663,2]
[344856064,1733838639338,-175.07282729,0.00023663,2]
[344856065,1733838639347,-113037.52395218,0.00023664,10]
[344856066,1733838639361,-3063.08,0.00023664,10]
[344856067,1733838639372,-4024.35375145,0.00023664,10]
[344856068,1733838639383,-293.0999024,0.00023664,10]
[344856073,1733838640232,-8651.03434313,0.00023664,10]
[344856074,1733838640242,-500.0,0.00023664,10]
[344856075,1733838640253,-500.0,0.00023664,2]
[344856076,1733838640262,-439.69244069,0.00023673,2]
[344856078,1733838640273,-408.82595052,0.00023673,2]
[344856080,1733838640282,-500.0,0.00023673,2]
[344856082,1733838640291,-1581.47519279,0.00024147,2]
[344856084,1733838640301,-160.0,0.00024149,2]
[344856086,1733838640311,-2070.30048894,0.00024161,2]
[344856087,1733838640321,-420.0,0.0002461,2]
[344856088,1733838640330,-380.0,0.00024658,2]
[344856089,1733838640339,-2070.30048894,0.00024763,2]
[344856091,1733838640349,-644.90581857,0.00024911,2]
[344856092,1733838640360,-500.0,0.00024989,5]
[344856094,1733838640372,-6464.05454068,0.0002499,5]
[344856096,1733838640384,-944.39389295,0.0002499,5]
[344856115,1733838643395,-9811.8050826,0.0002499,5]
[344856260,1733839838439,-173.823351,0.00023443,2]
[344856262,1733839838449,-199.0,0.00023472,2]
[344856264,1733839838462,-300.0,0.00023472,2]
[344856266,1733839838471,-15861.0744349,0.00023473,2]
[344856268,1733839838480,-256.0,0.00023683,2]
[344856270,1733839838489,-462.324,0.0002374,2]
[344856272,1733839838499,-256.0,0.00024559,2]
[344856274,1733839838508,-828.1201956,0.0002489,2]
[344856276,1733839838518,-500.0,0.00024989,2]
[344856278,1733839838527,-500.0,0.00024989,2]
[344856280,1733839838537,-500.0,0.00024989,2]
[344856282,1733839838547,-500.0,0.00024989,2]
[344856284,1733839838558,-500.0,0.00024989,2]
[344856286,1733839838567,-500.0,0.00024989,2]
[344856288,1733839838577,-500.0,0.00024989,2]
[344856290,1733839838586,-500.0,0.00024989,2]
[344856292,1733839838595,-500.0,0.00024989,2]
[344856294,1733839838605,-500.0,0.00024989,2]
[344856296,1733839838615,-383.73571898,0.00024989,2]
[344856298,1733839838624,-500.0,0.00024989,2]
[344856300,1733839838633,-500.0,0.00024989,2]
[344856302,1733839838642,-500.0,0.00024989,2]
[344856304,1733839838651,-500.0,0.00024989,2]
[344856306,1733839838661,-500.0,0.00024989,2]
[344856308,1733839838670,-2.82566275,0.00024989,2]
[344856311,1733839838687,-497.17433725,0.00024989,2]
[344856313,1733839838696,-500.0,0.00024989,2]
[344856315,1733839838706,-499.6194865,0.00024989,2]
[344856317,1733839838722,-0.3805135,0.00024989,2]